fUSD/lending_fUSD_20250804
["ID","MTS","AMOUNT","RATE_DAILY","PERIOD"]
[377250953,1754306646113,-864.99,0.00043835,120]
[377250954,1754306646146,-982.85,0.00043835,120]
[377250955,1754306646179,-499.14,0.00043835,120]
[377250956,1754306646211,-792.37,0.00043835,120]
[377250957,1754306646243,-511.05,0.00043835,120]
[377250958,1754306646275,-390.2,0.00043835,120]
[377250959,1754306646308,-400.0,0.00043835,120]
[377250960,1754306646340,-415.04,0.00043835,120]
[377250961,1754306646372,-449.71,0.00043835,120]
[377250962,1754306646405,-1618.27,0.00043835,120]
[377250963,1754306646438,-603.58,0.00043835,120]
[377250964,1754306646482,-1600.0,0.00043992,120]
[377250965,1754306646519,-400.0,0.00044108,120]
[377250966,1754306646555,-400.0,0.00044108,120]
[377250967,1754306646590,-400.0,0.00044108,120]
[377250968,1754306646624,-1929.71,0.00044108,120]
[377250969,1754306646659,-400.0,0.00044108,120]
[377250970,1754306646693,-444.61,0.00044108,120]
[377250971,1754306646729,-400.0,0.00044108,120]
[377250972,1754306646764,-400.0,0.00044108,60]
[377250973,1754306646799,-685.59,0.00044108,120]
[377250974,1754306646835,-400.0,0.00044108,120]
[377250975,1754306646871,-400.0,0.00044108,120]
[377250976,1754306646907,-757.95,0.00044108,120]
[377250977,1754306646941,-400.0,0.00044108,120]
[377250978,1754306646974,-400.0,0.00044108,120]
[377250979,1754306647007,-400.0,0.00044108,120]
[377250980,1754306647040,-400.0,0.00044108,120]
[377250981,1754306647072,-705.43,0.00044108,120]
[377250982,1754306647106,-793.04,0.00044108,120]
[377250983,1754306647139,-400.0,0.00044108,120]
[377250984,1754306647173,-842.59,0.00044108,120]
[377250985,1754306647209,-443.66,0.00044108,120]
[377250986,1754306647262,-400.0,0.00044108,120]
[377250987,1754306647303,-400.0,0.00044108,120]
[377250988,1754306647340,-559.08,0.00044108,120]
[377250989,1754306647379,-400.0,0.00044108,120]
[377250990,1754306647420,-782.26,0.00044108,120]
[377250991,1754306647462,-400.0,0.00044108,120]
[377250992,1754306647501,-3392.4,0.00044108,120]
[377250993,1754306647541,-507.62,0.00044109,120]
[377250994,1754306647581,-1204.41,0.00044109,120]
[377250995,1754306647619,-978.92,0.00044109,120]
[377250996,1754306647657,-2032.62,0.00044109,120]
[377250997,1754306647696,-483.03,0.00044109,120]
[377250998,1754306647735,-1299.14,0.00044109,120]
[377250999,1754306647773,-1282.08,0.00044109,120]
[377251000,1754306647812,-623.34,0.00044109,120]
[377251001,1754306647852,-954.63,0.00044109,120]
[377251002,1754306647893,-506.9,0.00044109,120]
[377251003,1754306647931,-424.03,0.00044109,120]
[377251004,1754306647979,-694.26,0.00044109,120]
[377251005,1754306648020,-446.01,0.00044109,120]
[377251006,1754306648058,-920.74,0.00044109,120]
[377251007,1754306648097,-571.07,0.00044109,120]
[377251008,1754306648135,-556.35,0.00044109,120]
[377251009,1754306648174,-583.16,0.00044109,120]
[377251010,1754306648211,-862.61,0.00044109,120]
[377251011,1754306648249,-2055.67,0.00044109,120]
[377251012,1754306648288,-791.02,0.00044109,120]
[377251013,1754306648327,-850.51,0.00044109,120]
[377251014,1754306648367,-663.93,0.00044109,120]
[377251015,1754306648406,-862.3,0.00044109,120]
[377251016,1754306648444,-958.9,0.00044109,120]
[377251017,1754306648493,-928.18,0.00044109,120]
[377251018,1754306648540,-1029.64,0.00044109,120]
[377251019,1754306648599,-2565.44,0.00044109,120]
[377251020,1754306648639,-2153.66,0.00044109,120]
[377251021,1754306648684,-680.83,0.00044109,120]
[377251022,1754306648726,-489.66,0.00044109,120]
[377251023,1754306648766,-414.65,0.00044109,120]
[377251024,1754306648806,-481.81,0.00044109,120]
[377251025,1754306648849,-1260.96,0.00044109,120]
[377251026,1754306648889,-542.53,0.00044109,120]
[377251027,1754306649298,-838.53,0.00044109,120]
[377251028,1754306649336,-2835.03,0.00044109,120]
[377251029,1754306649376,-1205.09,0.00044109,120]
[377251030,1754306649414,-2158.61,0.00044109,120]
[377251031,1754306649452,-476.33,0.00044109,120]
[377251032,1754306649492,-445.54,0.00044109,120]
[377251033,1754306649530,-1047.46,0.00044109,120]
[377251034,1754306649567,-1053.75,0.00044109,120]
[377251035,1754306649605,-543.05,0.00044109,120]
[377251036,1754306649644,-907.96,0.00044109,120]
[377251037,1754306649682,-900.03,0.00044109,120]
[377251038,1754306649722,-274.89996766,0.00044109,120]
[377251039,1754306649759,-635.5,0.00044109,120]
[377251040,1754306649801,-264.18,0.00044109,120]
[377251041,1754306649841,-1003.97,0.00044109,120]
[377251042,1754306649878,-461.76,0.00044109,120]
[377251043,1754306649918,-616.9,0.00044109,120]
[377251044,1754306649955,-468.49,0.00044109,120]
[377251045,1754306649992,-801.26,0.00044109,120]
[377251046,1754306650031,-1517.5,0.00044109,120]
[377251047,1754306650071,-712.95,0.00044109,120]
[377251048,1754306650112,-747.36,0.00044109,120]
[377251049,1754306650152,-877.94,0.00044109,120]
[377251050,1754306650192,-521.82,0.00044109,120]
[377251051,1754306650232,-425.37,0.00044109,120]
[377251052,1754306650269,-2071.68,0.00044109,120]
[377251053,1754306650308,-864.99,0.00044109,120]
[377251054,1754306650348,-982.85,0.00044109,120]
[377251055,1754306650387,-1686.22,0.00044109,120]
[377251056,1754306650428,-792.37,0.00044109,120]
[377251057,1754306650470,-499.14,0.00044109,120]
[377251058,1754306650511,-511.05,0.00044109,120]
[377251059,1754306650550,-400.0,0.00044109,120]
[377251060,1754306650591,-415.04,0.00044109,120]
[377251061,1754306650637,-449.71,0.00044109,120]
[377251062,1754306650686,-1618.27,0.00044109,120]
[377251063,1754306650728,-603.58,0.00044109,120]
[377251064,1754306650769,-400.0,0.00044382,120]
[377251065,1754306650811,-400.0,0.00044382,120]
[377251066,1754306650852,-400.0,0.00044382,120]
[377251067,1754306650893,-1929.71,0.00044382,120]
[377251068,1754306650935,-400.0,0.00044382,120]
[377251069,1754306650976,-444.61,0.00044382,120]
[377251070,1754306651016,-400.0,0.00044382,120]
[377251071,1754306651053,-400.0,0.00044382,60]
[377251072,1754306651093,-685.59,0.00044382,120]
[377251073,1754306651133,-525.93204857,0.00044382,120]
[377251074,1754306651173,-400.0,0.00044382,120]
[377251075,1754306651214,-757.95,0.00044382,120]
[377251076,1754306651253,-400.0,0.00044382,120]
[377251077,1754306651293,-400.0,0.00044382,120]
[377251078,1754306651332,-400.0,0.00044382,120]
[377251079,1754306651371,-400.0,0.00044382,120]
[377251080,1754306651409,-705.43,0.00044382,120]
[377251081,1754306651447,-793.04,0.00044382,120]
[377251082,1754306651490,-400.0,0.00044382,120]
[377251083,1754306651532,-842.59,0.00044382,120]
[377251084,1754306651584,-443.66,0.00044382,120]
[377251085,1754306651626,-400.0,0.00044382,120]
[377251086,1754306651672,-400.0,0.00044382,120]
[377251087,1754306651715,-559.08,0.00044382,120]
[377251088,1754306651755,-400.0,0.00044382,120]
[377251089,1754306651800,-400.0,0.00044382,120]
[377251090,1754306651847,-782.26,0.00044382,120]
[377251091,1754306651891,-1204.41,0.00044383,120]
[377251092,1754306651934,-507.62,0.00044383,120]
[377251093,1754306651978,-978.92,0.00044383,120]
[377251094,1754306652016,-2032.62,0.00044383,120]
[377251095,1754306652059,-483.03,0.00044383,120]
[377251096,1754306652101,-1299.14,0.00044383,120]
[377251097,1754306652143,-1282.08,0.00044383,120]
[377251098,1754306652190,-623.34,0.00044383,120]
[377251099,1754306652232,-954.63,0.00044383,120]
[377251100,1754306652276,-506.9,0.00044383,120]
[377251101,1754306652317,-424.03,0.00044383,120]
[377251102,1754306652356,-694.26,0.00044383,120]
[377251103,1754306652394,-446.01,0.00044383,120]
[377251104,1754306652433,-571.07,0.00044383,120]
[377251105,1754306652470,-556.35,0.00044383,120]
[377251106,1754306652508,-583.16,0.00044383,120]
[377251107,1754306652545,-920.74,0.00044383,120]
[377251108,1754306652584,-862.61,0.00044383,120]
[377251109,1754306652623,-2055.67,0.00044383,120]
[377251110,1754306652662,-791.02,0.00044383,120]
[377251111,1754306652699,-850.51,0.00044383,120]
[377251112,1754306652737,-663.93,0.00044383,120]
[377251113,1754306652780,-862.3,0.00044383,120]
[377251114,1754306652822,-958.9,0.00044383,120]
[377251115,1754306652865,-928.18,0.00044383,120]
[377251116,1754306652905,-1029.64,0.00044383,120]
[377251117,1754306652946,-2565.44,0.00044383,120]
[377251118,1754306652986,-680.83,0.00044383,120]
[377251119,1754306653024,-2153.66,0.00044383,120]
[377251120,1754306653061,-489.66,0.00044383,120]
[377251121,1754306653097,-414.65,0.00044383,120]
[377251122,1754306653467,-481.81,0.00044383,120]
[377251123,1754306653508,-1260.96,0.00044383,120]
[377251124,1754306653547,-542.53,0.00044383,120]
[377251125,1754306653587,-838.53,0.00044383,120]
[377251126,1754306653624,-2835.03,0.00044383,120]
[377251127,1754306653662,-1205.09,0.00044383,120]
[377251128,1754306653700,-2158.61,0.00044383,120]
[377251129,1754306653738,-476.33,0.00044383,120]
[377251130,1754306653774,-445.54,0.00044383,120]
[377251131,1754306653811,-1047.46,0.00044383,120]
[377251132,1754306653848,-1053.75,0.00044383,120]
[377251133,1754306653886,-543.05,0.00044383,120]
[377251134,1754306653924,-907.96,0.00044383,120]
[377251135,1754306653962,-900.03,0.00044383,120]
[377251136,1754306654000,-635.5,0.00044383,120]
[377251137,1754306654036,-1003.97,0.00044383,120]
[377251138,1754306654071,-461.76,0.00044383,120]
[377251139,1754306654112,-616.9,0.00044383,120]
[377251140,1754306654151,-468.49,0.00044383,120]
[377251141,1754306654188,-801.26,0.00044383,120]
[377251142,1754306654226,-1517.5,0.00044383,120]
[377251143,1754306654264,-712.95,0.00044383,120]
[377251144,1754306654300,-877.94,0.00044383,120]
[377251145,1754306654335,-521.82,0.00044383,120]
[377251146,1754306654370,-747.36,0.00044383,120]
[377251147,1754306654404,-425.37,0.00044383,120]
[377251148,1754306654439,-2071.68,0.00044383,120]
[377251149,1754306654475,-864.99,0.00044383,120]
[377251150,1754306654512,-982.85,0.00044383,120]
[377251151,1754306654549,-1686.22,0.00044383,120]
[377251152,1754306654587,-792.37,0.00044383,120]
[377251153,1754306654625,-499.14,0.00044383,120]
[377251154,1754306654664,-511.05,0.00044383,120]
[377251155,1754306654702,-400.0,0.00044383,120]
[377251156,1754306654740,-415.04,0.00044383,120]
[377251157,1754306654778,-449.71,0.00044383,120]
[377251158,1754306654818,-1618.27,0.00044383,120]
[377251159,1754306654857,-603.58,0.00044383,120]
[377251160,1754306654896,-500.0,0.00044552,120]
[377251161,1754306654935,-500.0,0.00044552,120]
[377251162,1754306654974,-500.0,0.00044552,120]
[377251163,1754306655012,-500.0,0.00044552,120]
[377251164,1754306655050,-500.0,0.00044552,120]
[377251165,1754306655087,-500.0,0.00044552,120]
[377251166,1754306655125,-500.0,0.00044552,120]
[377251167,1754306655162,-500.0,0.00044552,120]
[377251168,1754306655199,-500.0,0.00044552,120]
[377251169,1754306655236,-500.0,0.00044552,120]
[377251170,1754306655272,-500.0,0.00044552,120]
[377251171,1754306655315,-500.0,0.00044552,120]
[377251172,1754306655355,-500.0,0.00044552,120]
[377251173,1754306655401,-500.0,0.00044552,120]
[377251174,1754306655439,-500.0,0.00044552,120]
[377251175,1754306655481,-500.0,0.00044552,120]
[377251176,1754306655521,-500.0,0.00044552,120]
[377251177,1754306655558,-500.0,0.00044552,120]
[377251178,1754306655595,-500.0,0.00044552,120]
[377251179,1754306655634,-500.0,0.00044552,120]
[377251180,1754306655672,-500.0,0.00044552,120]
[377251181,1754306655708,-500.0,0.00044552,120]
[377251182,1754306655745,-500.0,0.00044552,120]
[377251183,1754306655784,-500.0,0.00044552,120]
[377251184,1754306655823,-500.0,0.00044552,120]
[377251185,1754306655863,-500.0,0.00044552,120]
[377251186,1754306655900,-500.0,0.00044552,120]
[377251187,1754306655940,-500.0,0.00044552,120]
[377251188,1754306655978,-500.0,0.00044552,120]
[377251189,1754306656014,-500.0,0.00044552,120]
[377251190,1754306656053,-500.0,0.00044552,120]
[377251191,1754306656092,-500.0,0.00044552,120]
[377251192,1754306656130,-500.0,0.00044552,120]
[377251193,1754306656166,-500.0,0.00044552,120]
[377251194,1754306656200,-500.0,0.00044552,120]
[377251195,1754306656235,-500.0,0.00044552,120]
[377251196,1754306656270,-500.0,0.00044552,120]
[377251197,1754306656307,-500.0,0.00044552,120]
[377251198,1754306656345,-500.0,0.00044552,120]
[377251199,1754306656381,-500.0,0.00044552,120]
[377251200,1754306656420,-500.0,0.00044552,120]
[377251201,1754306656455,-500.0,0.00044552,120]
[377251202,1754306656489,-500.0,0.00044552,120]
[377251203,1754306656525,-500.0,0.00044552,120]
[377251204,1754306656561,-500.0,0.00044552,120]
[377251205,1754306656599,-500.0,0.00044552,120]
[377251206,1754306656634,-500.0,0.00044552,120]
[377251207,1754306656669,-500.0,0.00044552,120]
[377251208,1754306656704,-500.0,0.00044552,120]
[377251209,1754306656741,-500.0,0.00044552,120]
[377251210,1754306656781,-500.0,0.00044552,120]
[377251211,1754306656821,-500.0,0.00044552,120]
[377251212,1754306656861,-500.0,0.00044552,120]
[377251213,1754306656902,-500.0,0.00044552,120]
[377251214,1754306656940,-500.0,0.00044552,120]
[377251215,1754306656988,-500.0,0.00044552,120]
[377251216,1754306657024,-500.0,0.00044552,120]
[377251217,1754306657059,-500.0,0.00044552,120]
[377251218,1754306657300,-500.0,0.00044552,120]
[377251219,1754306657338,-500.0,0.00044552,120]
[377251220,1754306657375,-500.0,0.00044552,120]
[377251221,1754306657411,-500.0,0.00044552,120]
[377251222,1754306657445,-500.0,0.00044552,120]
[377251223,1754306657482,-500.0,0.00044552,120]
[377251224,1754306657517,-500.0,0.00044552,120]
[377251225,1754306657553,-500.0,0.00044552,120]
[377251226,1754306657589,-500.0,0.00044552,120]
[377251227,1754306657625,-500.0,0.00044552,120]
[377251228,1754306657663,-500.0,0.00044552,120]
[377251229,1754306657702,-500.0,0.00044552,120]
[377251230,1754306657740,-500.0,0.00044552,120]
[377251231,1754306657778,-500.0,0.00044552,120]
[377251232,1754306657816,-500.0,0.00044552,120]
[377251233,1754306657854,-500.0,0.00044552,120]
[377251234,1754306657891,-500.0,0.00044552,120]
[377251235,1754306657931,-500.0,0.00044552,120]
[377251236,1754306657968,-500.0,0.00044552,120]
[377251237,1754306658007,-500.0,0.00044552,120]
[377251238,1754306658045,-500.0,0.00044552,120]
[377251239,1754306658082,-500.0,0.00044552,120]
[377251240,1754306658118,-500.0,0.00044552,120]
[377251241,1754306658155,-500.0,0.00044552,120]
[377251242,1754306658192,-500.0,0.00044552,120]
[377251243,1754306658228,-500.0,0.00044552,120]
[377251244,1754306658271,-500.0,0.00044552,120]
[377251245,1754306658309,-500.0,0.00044552,120]
[377251246,1754306658348,-500.0,0.00044552,120]
[377251247,1754306658387,-500.0,0.00044552,120]
[377251248,1754306658425,-500.0,0.00044552,120]
[377251249,1754306658462,-500.0,0.00044552,120]
[377251250,1754306658500,-500.0,0.00044552,120]
[377251251,1754306658537,-500.0,0.00044552,120]
[377251252,1754306658576,-500.0,0.00044552,120]
[377251253,1754306658614,-500.0,0.00044552,120]
[377251254,1754306658655,-500.0,0.00044552,120]
[377251255,1754306658699,-500.0,0.00044552,120]
[377251256,1754306658739,-500.0,0.00044552,120]
[377251257,1754306658777,-500.0,0.00044552,120]
[377251258,1754306658815,-500.0,0.00044552,120]
[377251259,1754306658854,-500.0,0.00044552,120]
[377251260,1754306658893,-500.0,0.00044552,120]
[377251261,1754306658933,-500.0,0.00044552,120]
[377251262,1754306658972,-500.0,0.00044552,120]
[377251263,1754306659014,-500.0,0.00044552,120]
[377251264,1754306659054,-500.0,0.00044552,120]
[377251265,1754306659093,-500.0,0.00044552,120]
[377251266,1754306659130,-500.0,0.00044552,120]
[377251267,1754306659166,-500.0,0.00044552,120]
[377251268,1754306659203,-500.0,0.00044552,120]
[377251269,1754306659239,-500.0,0.00044552,120]
[377251270,1754306659275,-500.0,0.00044552,120]
[377251271,1754306659309,-500.0,0.00044552,120]
[377251272,1754306659345,-500.0,0.00044552,120]
[377251273,1754306659383,-500.0,0.00044552,120]
[377251274,1754306659421,-500.0,0.00044552,120]
[377251275,1754306659459,-500.0,0.00044552,120]
[377251276,1754306659498,-500.0,0.00044552,120]
[377251277,1754306659536,-500.0,0.00044552,120]
[377251278,1754306659574,-500.0,0.00044552,120]
[377251279,1754306659613,-500.0,0.00044552,120]
[377251280,1754306659653,-500.0,0.00044552,120]
[377251281,1754306659695,-500.0,0.00044552,120]
[377251282,1754306659739,-500.0,0.00044552,120]
[377251283,1754306659781,-500.0,0.00044552,120]
[377251284,1754306659823,-500.0,0.00044552,120]
[377251285,1754306659866,-500.0,0.00044552,120]
[377251286,1754306659907,-400.0,0.00044656,120]
[377251287,1754306659945,-234.98403652,0.00044656,120]
[377251288,1754306659984,-400.0,0.00044656,120]
[377251289,1754306660022,-1929.71,0.00044656,120]
[377251290,1754306660059,-400.0,0.00044656,120]
[377251291,1754306660096,-444.61,0.00044656,120]
[377251292,1754306660133,-328.59952494,0.00044656,120]
[377251293,1754306660170,-400.0,0.00044656,60]
[377251294,1754306660206,-685.59,0.00044656,120]
[377251295,1754306660242,-400.0,0.00044656,120]
[377251296,1754306660279,-400.0,0.00044656,120]
[377251297,1754306660317,-757.95,0.00044656,120]
[377251298,1754306660354,-400.0,0.00044656,120]
[377251299,1754306660392,-180.43057085,0.00044656,120]
[377251300,1754306660432,-403.77838539,0.00044656,120]
[377251301,1754306660470,-705.43,0.00044656,120]
[377251302,1754306660511,-400.0,0.00044656,120]
[377251303,1754306660549,-793.04,0.00044656,120]
[377251304,1754306660589,-842.59,0.00044656,120]
[377251305,1754306660628,-443.66,0.00044656,120]
[377251306,1754306660666,-400.0,0.00044656,120]
[377251307,1754306660705,-400.0,0.00044656,120]
[377251308,1754306660744,-559.08,0.00044656,120]
[377251309,1754306660782,-400.0,0.00044656,120]
[377251310,1754306660821,-400.0,0.00044656,120]
[377251311,1754306660860,-782.26,0.00044656,120]
[377251312,1754306660900,-1204.51181174,0.00044657,120]
[377251313,1754306661121,-507.82,0.00044657,120]
[377251314,1754306661176,-979.05841456,0.00044657,120]
[377251315,1754306661215,-2032.85782625,0.00044657,120]
[377251316,1754306661255,-483.0898218,0.00044657,120]
[377251317,1754306661294,-1299.17742426,0.00044657,120]
[377251318,1754306661333,-1282.29114047,0.00044657,120]
[377251319,1754306661372,-623.43,0.00044657,120]
[377251320,1754306661409,-954.85122681,0.00044657,120]
[377251321,1754306661447,-424.11116271,0.00044657,120]
[377251322,1754306661485,-694.35418341,0.00044657,120]
[377251323,1754306661527,-446.1499405,0.00044657,120]
[377251324,1754306661565,-571.11206723,0.00044657,120]
[377251325,1754306661605,-556.54669684,0.00044657,120]
[377251326,1754306661642,-583.349372,0.00044657,120]
[377251327,1754306661682,-920.7863534,0.00044657,120]
[377251328,1754306661722,-862.84769359,0.00044657,120]
[377251329,1754306661761,-2055.73,0.00044657,120]
[377251330,1754306661802,-791.10293317,0.00044657,120]
[377251331,1754306661842,-850.52298916,0.00044657,120]
[377251332,1754306661881,-664.15624024,0.00044657,120]
[377251333,1754306661922,-862.32836238,0.00044657,120]
[377251334,1754306661966,-959.03019711,0.00044657,120]
[377251335,1754306662005,-928.4,0.00044657,120]
[377251336,1754306662044,-1029.84715935,0.00044657,120]
[377251337,1754306662083,-2565.47248984,0.00044657,120]
[377251338,1754306662121,-681.06715705,0.00044657,120]
[377251339,1754306662159,-2153.71700926,0.00044657,120]
[377251340,1754306662197,-489.8109115,0.00044657,120]
[377251341,1754306662236,-414.75198559,0.00044657,120]
[377251342,1754306662274,-481.88518985,0.00044657,120]
[377251343,1754306662312,-1261.05032169,0.00044657,120]
[377251344,1754306662349,-542.64840892,0.00044657,120]
[377251345,1754306662385,-838.6887424,0.00044657,120]
[377251346,1754306662421,-2835.08,0.00044657,120]
[377251347,1754306662456,-1205.1555686,0.00044657,120]
[377251348,1754306662496,-2158.6424922,0.00044657,120]
[377251349,1754306662531,-476.42487952,0.00044657,120]
[377251350,1754306662567,-445.70928579,0.00044657,120]
[377251351,1754306662603,-1053.80239415,0.00044657,120]
[377251352,1754306662638,-543.08273576,0.00044657,120]
[377251353,1754306662675,-1047.66705829,0.00044657,120]
[377251354,1754306662712,-908.19796488,0.00044657,120]
[377251355,1754306662752,-900.14973342,0.00044657,120]
[377251356,1754306662790,-635.52,0.00044657,120]
[377251357,1754306662826,-1003.98396861,0.00044657,120]
[377251358,1754306662864,-461.99,0.00044657,120]
[377251359,1754306662911,-617.0,0.00044657,120]
[377251360,1754306662953,-468.72395351,0.00044657,120]
[377251361,1754306662992,-801.43785357,0.00044657,120]
[377251362,1754306663030,-1517.54,0.00044657,120]
[377251363,1754306663066,-713.07,0.00044657,120]
[377251364,1754306663100,-521.9767039,0.00044657,120]
[377251365,1754306663134,-878.15663286,0.00044657,120]
[377251366,1754306663170,-747.53599843,0.00044657,120]
[377251367,1754306663205,-425.37391902,0.00044657,120]
[377251369,1754306663240,-2071.7870468,0.00044657,120]
[377251370,1754306663276,-865.03940605,0.00044657,120]
[377251371,1754306663312,-982.90998379,0.00044657,120]
[377251372,1754306663349,-1686.39273887,0.00044657,120]
[377251373,1754306663387,-792.5329701,0.00044657,120]
[377251374,1754306663425,-499.21646283,0.00044657,120]
[377251376,1754306663463,-511.16,0.00044657,120]
[377251377,1754306663498,-360.66109147,0.00044657,120]
[377251378,1754306663538,-415.26801889,0.00044657,120]
[377251379,1754306663575,-449.86776122,0.00044657,120]
[377251380,1754306663613,-1618.38486573,0.00044657,120]
[377251381,1754306663651,-603.8197584,0.00044657,120]
[377251383,1754306663690,-400.0,0.0004493,120]
[377251384,1754306663728,-191.50963082,0.0004493,120]
[377251385,1754306663766,-1929.71,0.0004493,120]
[377251386,1754306663806,-400.0,0.0004493,120]
[377251387,1754306663844,-444.61,0.0004493,120]
[377251389,1754306663882,-400.0,0.0004493,60]
[377251390,1754306663922,-685.59,0.0004493,120]
[377251391,1754306663959,-400.0,0.0004493,120]
[377251392,1754306663996,-400.0,0.0004493,120]
[377251393,1754306664037,-757.95,0.0004493,120]
[377251394,1754306664358,-400.0,0.0004493,120]
[377251395,1754306664396,-705.43,0.0004493,120]
[377251396,1754306664435,-403.23287408,0.0004493,120]
[377251397,1754306664473,-793.04,0.0004493,120]
[377251398,1754306664510,-842.59,0.0004493,120]
[377251399,1754306664551,-443.66,0.0004493,120]
[377251400,1754306664589,-400.0,0.0004493,120]
[377251401,1754306664627,-400.0,0.0004493,120]
[377251402,1754306664662,-559.08,0.0004493,120]
[377251403,1754306664701,-400.0,0.0004493,120]
[377251404,1754306664746,-400.0,0.0004493,120]
[377251405,1754306664786,-782.26,0.0004493,120]
[377251406,1754306664826,-212.0,0.00045,120]
[377251407,1754306664865,-400.0,0.00045204,120]
[377251408,1754306664905,-1929.71,0.00045204,120]
[377251409,1754306664945,-400.0,0.00045204,120]
[377251410,1754306664983,-444.61,0.00045204,120]
[377251411,1754306665019,-400.0,0.00045204,60]
[377251412,1754306665281,-685.59,0.00045204,120]
[377251413,1754306665321,-276.00428439,0.00045204,120]
[377251414,1754306665378,-400.0,0.00045204,120]
[377251415,1754306665418,-757.95,0.00045204,120]
[377251416,1754306665454,-171.95457929,0.00045204,120]
[377251417,1754306665491,-705.43,0.00045204,120]
[377251418,1754306665529,-793.04,0.00045204,120]
[377251419,1754306665567,-842.59,0.00045204,120]
[377251420,1754306665606,-443.66,0.00045204,120]
[377251421,1754306665642,-400.0,0.00045204,120]
[377251422,1754306665680,-400.0,0.00045204,120]
[377251423,1754306665716,-559.08,0.00045204,120]
[377251424,1754306665760,-400.0,0.00045204,120]
[377251425,1754306665800,-400.0,0.00045204,120]
[377251426,1754306665841,-782.26,0.00045204,120]
[377251427,1754306665882,-400.0,0.00045478,120]
[377251428,1754306665924,-1929.71,0.00045478,120]
[377251429,1754306665965,-400.0,0.00045478,120]
[377251430,1754306666004,-444.61,0.00045478,120]
[377251431,1754306666041,-264.74,0.00045478,60]
[377251432,1754306666077,-685.59,0.00045478,120]
[377251433,1754306666111,-400.0,0.00045478,120]
[377251434,1754306666148,-757.95,0.00045478,120]
[377251435,1754306666189,-705.43,0.00045478,120]
[377251436,1754306666224,-793.04,0.00045478,120]
[377251437,1754306666260,-842.59,0.00045478,120]
[377251438,1754306666295,-443.66,0.00045478,120]
[377251439,1754306666330,-400.0,0.00045478,120]
[377251440,1754306666366,-400.0,0.00045478,120]
[377251441,1754306666401,-559.08,0.00045478,120]
[377251442,1754306666436,-400.0,0.00045478,120]
[377251443,1754306666470,-400.0,0.00045478,120]
[377251444,1754306666507,-782.26,0.00045478,120]
[377251445,1754306666547,-400.0,0.00045752,120]
[377251446,1754306666586,-1929.71,0.00045752,120]
[377251447,1754306666625,-400.0,0.00045752,120]
[377251448,1754306666660,-444.61,0.00045752,120]
[377251449,1754306666699,-685.59,0.00045752,120]
[377251450,1754306666735,-400.0,0.00045752,120]
[377251451,1754306666773,-757.95,0.00045752,120]
[377251452,1754306666812,-705.43,0.00045752,120]
[377251453,1754306666855,-793.04,0.00045752,120]
[377251454,1754306666897,-842.59,0.00045752,120]
[377251455,1754306666936,-443.66,0.00045752,120]
[377251456,1754306666976,-400.0,0.00045752,120]